Cogmind - Beta 10.1 @@@ ROGUE MODE // 2021.05.01 @ 10:00:55 Player: Farfid Result: Destroyed by G-47 Trooper with Particle Gun Performance ------------- Evolutions (2) 1000 Regions Visited (10) 2000 Robots Destroyed (101) 505 Value Destroyed (4120) 4120 Prototype IDs (18) 360 Alien Tech Used (0) 0 Bonus (1337) 1337 TOTAL SCORE: 9322 Bonus ------- High Alert Combat Kills 449 Follower Combat Kills 105 Entered Garrisons 400 Used RIF Installer 500 Friendly Fire -117 Cogmind --------- Core Integrity 0/550 Matter 230/300 Energy 280/280 System Corruption 0% Temperature Cool (13) Movement Core (1850) Ox36 Location -8/Garrison Parts ------- > --- POWER (1) -------- Heavy Ion Engine > --- PROPULSION (3) --- (None) > --- UTILITY (5) ------ High-capacity Storage Unit High-capacity Storage Unit High-capacity Storage Unit Utility Shielding > --- WEAPON (2) ------- Gauss Rifle > --- INVENTORY (28) --- Light Deuterium Engine Disposable Heat Sink Disposable Heat Sink High-capacity Storage Unit High-capacity Storage Unit High-capacity Battery (400) Compact Matter Pod (150) Advanced Terrain Scanner Improved Weapon Shielding Relay Coupler [NC] (27) Relay Coupler [NC] (31) Relay Coupler [NC] (28) Relay Coupler [Swarmer] (41) Relay Coupler [Swarmer] (40) Relay Coupler [Swarmer] (43) Relay Coupler [Grunt] (24) Relay Coupler [Brawler] (25) Relay Coupler [Duelist] (29) Relay Coupler [Sentry] (22) Relay Coupler [Hunter] (14) Relay Coupler [Hunter] (18) Relay Coupler [Hunter] (13) Gauss Rifle Gauss Rifle Grenade Launcher Plasma Cutter Katana Peak State ------------ > --- POWER ------------ Heavy Ion Engine > --- PROPULSION ------- Wheel Armored Wheel Armored Wheel > --- UTILITY ---------- High-capacity Storage Unit High-capacity Storage Unit High-capacity Storage Unit Utility Shielding Relay Coupler [Sentry] > --- WEAPON ----------- Gauss Rifle Gauss Rifle > --- INVENTORY -------- Heavy Ion Engine Armored Wheel Disposable Heat Sink Disposable Heat Sink High-capacity Storage Unit High-capacity Storage Unit High-capacity Battery Compact Matter Pod Advanced Terrain Scanner Improved Weapon Shielding Relay Coupler [NC] Relay Coupler [NC] Relay Coupler [NC] Relay Coupler [Swarmer] Relay Coupler [Swarmer] Relay Coupler [Grunt] Relay Coupler [Brawler] Relay Coupler [Duelist] Relay Coupler [Sentry] Relay Coupler [Hunter] Relay Coupler [Hunter] Gauss Rifle Gauss Rifle Gauss Rifle Grenade Launcher Plasma Cutter Katana [Rating: 31] Favorites ----------- Power Improved Ion Engine Engine Improved Ion Engine Power Core Light Nuclear Core Propulsion Aluminum Leg Leg Aluminum Leg Wheel Armored Wheel Utility High-capacity Storage Unit Device Disposable Heat Sink Storage High-capacity Storage Unit Hackware Hacking Suite Protection Utility Shielding Weapon Gauss Rifle Energy Gun Improved EM Shotgun Energy Cannon Particle Cannon Ballistic Gun Gauss Rifle Launcher Grenade Launcher Special Melee Weapon Datajack Build | -11 -10 -10 -9 -9 -9 -8 -8 -8 -8 -8 ------- Run | Scr Mat Min Mat Min Exi Min Mat Gar Mat Gar Slots Evolved 4 | . . . 2 . . . 2 . . . Power . | . . . . . . . . . . . Propulsion 1 | . . . . . . . 1 . . . Utility 3 | . . . 2 . . . 1 . . . Weapon . | . . . . . . . . . . . Parts Attached 89 | 7 9 2 11 2 7 7 12 15 7 10 Power 12 | 2 1 . 1 . . 2 1 1 3 1 Engine 8 | 2 . . 1 . . 2 1 . 1 1 Core 4 | . 1 . . . . . . 1 2 . Reactor . | . . . . . . . . . . . Propulsion 21 | 2 3 1 . . . 1 5 7 1 1 Treads . | . . . . . . . . . . . Leg 15 | 2 3 1 . . . 1 5 3 . . Wheel 6 | . . . . . . . . 4 1 1 Hover . | . . . . . . . . . . . Flight . | . . . . . . . . . . . Utility 19 | 1 2 1 6 . 5 . 1 2 . 1 Device 2 | . 1 . . . 1 . . . . . Storage 12 | 1 1 1 5 . 3 . . 1 . . Processor . | . . . . . . . . . . . Hackware 2 | . . . . . . . 1 . . 1 Protection 3 | . . . 1 . 1 . . 1 . . Artifact . | . . . . . . . . . . . Weapon 37 | 2 3 . 4 2 2 4 5 5 3 7 Energy Gun 13 | 1 3 . 2 1 1 1 2 2 . . Energy Cannon 2 | . . . . . . . . 2 . . Ballistic Gun 13 | 1 . . 1 . . 2 2 . 3 4 Ballistic Cannon . | . . . . . . . . . . . Launcher 6 | . . . 1 1 . 1 1 1 . 1 Special Weapon . | . . . . . . . . . . . Impact Weapon . | . . . . . . . . . . . Slashing Weapon . | . . . . . . . . . . . Piercing Weapon . | . . . . . . . . . . . Special Melee Weapon 3 | . . . . . 1 . . . . 2 Unidentified Prototypes 2 | . . . 2 . . . . . . . Parts Lost 32 | . 4 . 1 . . 5 5 5 4 8 Power 6 | . 1 . 1 . . 1 1 . 1 1 Propulsion 11 | . . . . . . 1 3 2 1 4 Utility . | . . . . . . . . . . . Weapon 15 | . 3 . . . . 3 1 3 2 3 Highest Loss Streak 4 | . 3 . 1 . . 4 3 1 2 2 Average Slot Usage (%) 95 | . 86 100 96 100 98 98 98 95 99 94 Engine 7 | . 10 . 4 11 11 10 8 6 1 8 Core 2 | . 3 14 6 . . . . 2 7 . Leg 18 | . 28 28 22 22 22 21 26 19 . . Wheel 6 | . . . . . . . . 7 26 22 Device 8 | . 3 14 11 11 10 11 9 9 9 1 Storage 20 | . 14 14 20 22 20 22 18 19 27 27 Hackware 2 | . . . . . . . 8 3 . 7 Protection 8 | . . . 9 11 10 11 9 9 9 9 Energy Gun 10 | . 15 28 21 9 13 12 5 8 1 . Energy Cannon 2 | . . . . . . . . 8 . . Ballistic Gun 5 | . 9 . . 11 . 8 12 . 16 15 Special Melee Weapon 1 | . . . . . 7 . . . . 1 Naked Turns . | . . . . . . . . . . . Heaviest Build 114 | 12 28 44 79 79 95 79 79 110 114 114 Greatest Support 43 | 20 20 20 20 20 20 20 43 38 36 34 Greatest Overweight (x) 9 | 2 1 2 3 3 4 3 3 6 4 9 Average Overweight (x) 2 | . . 1 2 3 2 3 2 2 3 3 Largest Inventory Capacity 40 | 6 12 12 20 20 40 20 20 28 28 28 Average Capacity 19 | 5 7 11 17 20 20 20 20 21 28 28 Most Carried 28 | 6 10 12 18 17 24 20 20 28 28 28 Average Carried 18 | 1 6 11 13 17 18 18 18 20 27 27 Final Capacity 28 | 6 10 12 20 20 20 20 20 28 28 28 Final Carried 28 | 1 10 12 17 17 19 19 20 28 28 27 Class Distribution -------------------- 52% | Hauler-Mutant 21% | Mutant 13% | Bothacker-Mutant 12% | Scavenger-Mutant Dominant Class ---------------- Mutant | -10/Materials Mutant | -10/Mines Mutant | -9/Materials Hauler-Mutant | -9/Mines Hauler-Mutant | -9/Exiles Hauler-Mutant | -8/Mines Scavenger-Mutant | -8/Materials Hauler-Mutant | -8/Garrison Bothacker-Mutant | -8/Materials Hauler-Mutant | -8/Garrison Resources | -11 -10 -10 -9 -9 -9 -8 -8 -8 -8 -8 ----------- Run | Scr Mat Min Mat Min Exi Min Mat Gar Mat Gar Matter Collected 2620 | 262 378 20 285 10 106 116 247 192 609 395 Remotely . | . . . . . . . . . . . Salvage Created 3840 | 71 437 217 293 11 . 225 366 821 761 638 Parts 215 | . 36 13 16 2 . 18 16 41 37 36 Haulers Intercepted 4 | . . . 1 . . . . . 3 . Recyclers Shooed 4 | 1 1 . . . . 1 . . 1 . Parts Field Recycled . | . . . . . . . . . . . Retrieved Matter . | . . . . . . . . . . . Parts Self-Destructed . | . . . . . . . . . . . Prevented . | . . . . . . . . . . . Kills | -11 -10 -10 -9 -9 -9 -8 -8 -8 -8 -8 ------- Run | Scr Mat Min Mat Min Exi Min Mat Gar Mat Gar Combat Hostiles Destroyed 85 | . 11 7 3 3 . 9 7 18 11 16 Guns 67 | . 11 7 3 1 . 6 6 9 11 13 Cannons 5 | . . . . . . . . 5 . . AOE 13 | . . . . 2 . 3 1 4 . 3 Classes Destroyed 12 | 1 4 . 3 . . 2 . . 2 . Worker 3 | . 1 . 2 . . . . . . . Builder 1 | . . . . . . . . . 1 . Tunneler 1 | . . . . . . . . . 1 . Hauler 4 | . . . 1 . . . . . 3 . Recycler 2 | 1 . . . . . . . . 1 . Operator 1 | . . . 1 . . . . . . . Watcher 3 | . 2 . . . . . . . . 1 Swarmer 36 | . 3 6 . 3 . 6 . 11 2 5 Grunt 32 | . 8 2 . . . 1 4 5 6 6 Duelist 3 | . . . . . . 1 . 2 . . Sentry 13 | . . . 3 . . . 3 . 2 5 Hunter 2 | . . . . . . 1 . . 1 . Best Kill Streak 7 | 1 5 3 2 3 . 6 2 5 4 7 Combat Bots Only 6 | . 5 3 1 3 . 6 2 5 2 6 Max Kills in Single Turn 4 | 1 2 1 1 1 . 2 1 4 2 2 Gunslinging . | . . . . . . . . . . . Exploded 4 | . . . . 1 . 2 1 4 . 2 Melee . | . . . . . . . . . . . Uniques/NPCs Destroyed . | . . . . . . . . . . . Combat | -11 -10 -10 -9 -9 -9 -8 -8 -8 -8 -8 -------- Run | Scr Mat Min Mat Min Exi Min Mat Gar Mat Gar Damage Taken 4608 | . 587 235 161 62 . 571 577 858 619 938 Core 934 | . 143 49 15 9 . 164 53 212 141 148 Absorbed by Shields . | . . . . . . . . . . . Core Remaining (%) 58 | 100 . 23 . . . 53 . . . . Volleys Fired 360 | 13 59 13 20 4 7 22 36 79 54 53 Largest 2 | 1 2 2 2 2 1 2 2 2 2 2 Hottest 131 | 40 65 90 101 79 45 101 79 131 73 56 Shots Fired 615 | 13 99 26 37 6 7 40 69 119 106 93 Gun 549 | 13 99 26 35 4 7 38 68 65 104 90 Cannon 55 | . . . . . . . . 53 2 . Launcher 11 | . . . 2 2 . 2 1 1 . 3 Special . | . . . . . . . . . . . Kinetic 310 | . 50 . . 2 . 11 48 8 101 90 Thermal 183 | 13 35 . 17 2 . 7 17 90 2 . Explosive 11 | . . . 2 2 . 2 1 1 . 3 Electromagnetic 111 | . 14 26 18 . 7 20 3 20 3 . Robot Hit Streak 11 | 6 11 10 11 1 . 10 9 11 10 8 Robot Miss Streak 6 | 2 4 6 3 4 . 2 3 3 5 2 Penetration Max 1 | . . . . . . . . . 1 1 Secondary Targets 4 | . . 1 . . . 1 1 1 . . Max Gunslinging Chain 1 | . . 1 . . . 1 1 1 . . Shots Hit Robots 385 | 9 60 17 25 1 11 32 45 62 69 54 Core Hits 190 | 2 29 13 12 3 . 18 19 44 25 25 Critical Hits 5 | . . . . . . . . 1 3 1 Critical Kills . | . . . . . . . . . . . Critical Parts Destroyed 5 | . . . . . . . . 1 3 1 Melee Attacks 15 | . . . . . 14 . . . . 1 Impact . | . . . . . . . . . . . Slashing . | . . . . . . . . . . . Piercing . | . . . . . . . . . . . Sneak Attacks 9 | . . . . . 9 . . . . . Combat Hostiles . | . . . . . . . . . . . Follow-up Attacks . | . . . . . . . . . . . Damage Inflicted 7806 | 112 809 181 455 191 . 639 691 1452 1845 1431 Guns 6490 | 112 809 181 455 31 . 456 590 785 1804 1267 Cannons 367 | . . . . . . . . 326 41 . Explosions 949 | . . . . 160 . 183 101 341 . 164 Melee . | . . . . . . . . . . . Ramming . | . . . . . . . . . . . Kinetic 3900 | . 374 . . 14 . 70 383 55 1737 1267 Thermal 1643 | 112 249 . 188 17 . 83 148 805 41 . Explosive 810 | . . . . 160 . 183 101 202 . 164 Electromagnetic 1453 | . 186 181 267 . . 303 59 390 67 . Impact . | . . . . . . . . . . . Slashing . | . . . . . . . . . . . Piercing . | . . . . . . . . . . . Highest Corruption . | . . . . . . . . . . . Average Corruption . | . . . . . . . . . . . Corruption Purged . | . . . . . . . . . . . Overload Shots . | . . . . . . . . . . . Overflow Damage 28 | . . . . 22 . 6 . . . . Projectiles . | . . . . . . . . . . . Explosions 28 | . . . . 22 . 6 . . . . Melee . | . . . . . . . . . . . Knockbacks . | . . . . . . . . . . . Impact . | . . . . . . . . . . . Kinetic . | . . . . . . . . . . . Secondary . | . . . . . . . . . . . Self-Inflicted Damage 110 | . . . . . . 47 . 24 . 39 Shots 5 | . . . . . . 3 . 1 . 1 Rammed . | . . . . . . . . . . . Targets Rammed . | . . . . . . . . . . . Kicked . | . . . . . . . . . . . Crushed . | . . . . . . . . . . . Highest Temperature 199 | . 79 180 159 24 . 198 75 199 38 23 Average Temperature 50 | . 22 78 52 12 . 65 28 68 10 5 Received Heat Transfer 1434 | . 237 27 45 . . 81 270 189 189 396 Siege Activations . | . . . . . . . . . . . Robots Corrupted 2 | . . . . . . . . 2 . . Combat Hostiles . | . . . . . . . . . . . Parts Fried 7 | . 1 . 2 . . 2 . 2 . . Impact Corruptions . | . . . . . . . . . . . Robots Melted . | . . . . . . . . . . . Combat Hostiles . | . . . . . . . . . . . Parts Melted 5 | . . . . . . . 1 4 . . Heat Transferred 3491 | 250 575 . 407 37 . 185 370 1593 74 . Parts Sabotaged . | . . . . . . . . . . . Parts Stolen . | . . . . . . . . . . . Parts Stripped . | . . . . . . . . . . . Power Chain Reactions 4 | . . . . . . 1 . 3 . . Missiles Intercepted . | . . . . . . . . . . . Alert | -11 -10 -10 -9 -9 -9 -8 -8 -8 -8 -8 ------- Run | Scr Mat Min Mat Min Exi Min Mat Gar Mat Gar Peak Influence 1283 | 5 226 160 195 95 . 217 254 1283 834 910 Initial 625 | . 3 . 62 25 . . 84 61 625 492 Average 461 | 1 86 71 103 90 . 62 132 755 720 758 Maximum Alert Level 4 | . 1 . . . . 1 1 4 3 3 Low Security (%) 44 | 100 90 100 100 100 . 93 85 11 . . Level 1 6 | . 9 . . . . 6 14 11 . . Level 2 12 | . . . . . . . . 15 38 31 Level 3 28 | . . . . . . . . 42 61 68 Level 4 6 | . . . . . . . . 19 . . Level 5 . | . . . . . . . . . . . High Security . | . . . . . . . . . . . Max Security . | . . . . . . . . . . . Squads Dispatched 6 | . 2 . 2 . . . . . 2 . Investigation 3 | . 1 . . . . . . . 2 . Extermination . | . . . . . . . . . . . Reinforcement 3 | . 1 . 2 . . . . . . . Assault . | . . . . . . . . . . . Garrison . | . . . . . . . . . . . Intercept . | . . . . . . . . . . . Construction Impeded . | . . . . . . . . . . . Haulers Reinforced . | . . . . . . . . . . . Stealth | -11 -10 -10 -9 -9 -9 -8 -8 -8 -8 -8 --------- Run | Scr Mat Min Mat Min Exi Min Mat Gar Mat Gar Distress Signals 4 | . 1 . 1 . . . 1 . . 1 Communications Jammed . | . . . . . . . . . . . Distress Signals . | . . . . . . . . . . . Times Spotted 125 | . 18 8 9 4 . 11 12 29 16 18 Peak Tracking Total 11 | . 5 3 2 3 . 3 3 8 3 11 Tactical Retreats 8 | . . . 1 . . 1 . 3 2 1 Traps | -11 -10 -10 -9 -9 -9 -8 -8 -8 -8 -8 ------- Run | Scr Mat Min Mat Min Exi Min Mat Gar Mat Gar Traps Triggered 13 | . 1 . . . . . . 8 1 3 Indirectly . | . . . . . . . . . . . Trap Hack Attempts . | . . . . . . . . . . . Triggered . | . . . . . . . . . . . Disarmed . | . . . . . . . . . . . Reprogrammed . | . . . . . . . . . . . Reused . | . . . . . . . . . . . Traps Extracted . | . . . . . . . . . . . Installed . | . . . . . . . . . . . Triggered . | . . . . . . . . . . . Exploded 2 | . . . . . . . . 2 . . Machines | -11 -10 -10 -9 -9 -9 -8 -8 -8 -8 -8 ---------- Run | Scr Mat Min Mat Min Exi Min Mat Gar Mat Gar Machines Disabled 9 | . . . . . . 1 . 6 . 2 Max in Single Turn 2 | . . . . . . 1 . 2 . 1 Garrison Relay 6 | . . . . . . . . 4 . 2 Phase Generator 1 | . . . . . . . . 1 . . Machines Sabotaged . | . . . . . . . . . . . Garrisons Compromised . | . . . . . . . . . . . Overloaded Fab Kills . | . . . . . . . . . . . Fab Network Shutdowns . | . . . . . . . . . . . Hacking | -11 -10 -10 -9 -9 -9 -8 -8 -8 -8 -8 --------- Run | Scr Mat Min Mat Min Exi Min Mat Gar Mat Gar Machines Accessed 16 | . 4 . 3 . 3 . 3 . 3 . Terminals 9 | . 4 . 2 . . . 1 . 2 . Fabricators . | . . . . . . . . . . . Repair Stations 1 | . . . 1 . . . . . . . Recycling Units . | . . . . . . . . . . . Scanalyzers 1 | . . . . . . . 1 . . . Garrison Access 2 | . . . . . . . 1 . 1 . Total Hacks 47 | . 10 . 9 . 13 . 7 . 8 . Successful 33 | . 3 . 6 . 13 . 4 . 7 . Failed 14 | . 7 . 3 . . . 3 . 1 . Catastrophic . | . . . . . . . . . . . Database Lockouts . | . . . . . . . . . . . Manual 2 | . . . 1 . 1 . . . . . Terminals 25 | . 10 . 7 . . . 2 . 6 . Fabricators . | . . . . . . . . . . . Repair Stations 2 | . . . 2 . . . . . . . Recycling Units . | . . . . . . . . . . . Scanalyzers 2 | . . . . . . . 2 . . . Garrison Access 5 | . . . . . . . 3 . 2 . Terminal Hacks 26 | . 3 . 4 . 13 . 1 . 5 . Record 13 | . . . . . 13 . . . . . Robot Analysis 2 | . . . . . . . . . 2 . Prototype ID Bank 2 | . 1 . . . . . 1 . . . Branch Access Points 1 | . . . 1 . . . . . . . Emergency Access Points 1 | . 1 . . . . . . . . . Terminal Index 1 | . . . . . . . . . 1 . Locate Traps 1 | . . . 1 . . . . . . . Hauler Manifests 3 | . 1 . 1 . . . . . 1 . Zone Layout 2 | . . . 1 . . . . . 1 . Fabricator Hacks . | . . . . . . . . . . . Repair Station Hacks 2 | . . . 2 . . . . . . . Scan Component 1 | . . . 1 . . . . . . . Repair 1 | . . . 1 . . . . . . . Recycling Unit Hacks . | . . . . . . . . . . . Scanalyzer 2 | . . . . . . . 2 . . . Insert Component 1 | . . . . . . . 1 . . . Analyze 1 | . . . . . . . 1 . . . Garrison Access Hacks 3 | . . . . . . . 1 . 2 . Unlock Access 2 | . . . . . . . 1 . 1 . Coupler Status 1 | . . . . . . . . . 1 . Unauthorized Hacks . | . . . . . . . . . . . Terminals . | . . . . . . . . . . . Fabricators . | . . . . . . . . . . . Repair Stations . | . . . . . . . . . . . Recycling Units . | . . . . . . . . . . . Scanalyzers . | . . . . . . . . . . . Garrison Access . | . . . . . . . . . . . Data Cores Recovered . | . . . . . . . . . . . Used . | . . . . . . . . . . . Hacking Detections 13 | . 4 . 3 . . . 3 . 3 . Full Trace Events 1 | . 1 . . . . . . . . . Feedback Events . | . . . . . . . . . . . Feedback Blocked . | . . . . . . . . . . . Robot Schematics Acquired . | . . . . . . . . . . . Robots Built . | . . . . . . . . . . . Matter . | . . . . . . . . . . . Time . | . . . . . . . . . . . Total Robot Build Rating . | . . . . . . . . . . . Part Schematics Acquired 1 | . . . . . . . 1 . . . Parts Built . | . . . . . . . . . . . Matter . | . . . . . . . . . . . Time . | . . . . . . . . . . . Total Part Build Rating . | . . . . . . . . . . . Parts Repaired 1 | . . . 1 . . . . . . . Time 26 | . . . 26 . . . . . . . Parts Recycled . | . . . . . . . . . . . Recycled Matter . | . . . . . . . . . . . Retrieved Matter . | . . . . . . . . . . . Retrieved Components . | . . . . . . . . . . . Parts Scanalyzed 1 | . . . . . . . 1 . . . Part Schematics Acquired 1 | . . . . . . . 1 . . . Parts Damaged . | . . . . . . . . . . . Bothacking | -11 -10 -10 -9 -9 -9 -8 -8 -8 -8 -8 ------------ Run | Scr Mat Min Mat Min Exi Min Mat Gar Mat Gar Used RIF Installer 1 | . . . . . . . . 1 . . Robots Hacked 9 | . . . . . 8 . . . . 1 Non-combat 3 | . . . . . 3 . . . . . Combat 6 | . . . . . 5 . . . . 1 Robot Hacks Applied 9 | . . . . . 8 . . . . 1 parse_system 8 | . . . . . 8 . . . . . formatsys_high 1 | . . . . . . . . . . 1 Relay Couplers Released 27 | . . . . . . . . 18 . 9 Machine Destruction 27 | . . . . . . . . 18 . 9 Attached 1 | . . . . . . . . . . 1 Robots Rewired 4 | . . 1 . . . . . 3 . . Allies Hacked . | . . . . . . . . . . . Hacks Repelled . | . . . . . . . . . . . Allies | -11 -10 -10 -9 -9 -9 -8 -8 -8 -8 -8 -------- Run | Scr Mat Min Mat Min Exi Min Mat Gar Mat Gar Total Allies 5 | . . 1 . . . . . 3 . 1 Largest Group 3 | . . . . . . . . 3 2 1 Highest-Rated Group 63 | . . . . . . . . 63 42 15 Highest-Rated Ally 21 | . . . . . . . . 21 21 15 Total Orders 4 | . . . . . . . . 4 . . STAY 2 | . . . . . . . . 2 . . FOLLOW 2 | . . . . . . . . 2 . . Ally Attacks 23 | . . 1 . . . . . 17 3 2 Total Damage 590 | . . 10 . . . . . 457 73 50 Kills 8 | . . . . . . . . 7 . 1 Allies Corrupted . | . . . . . . . . . . . Allies Melted . | . . . . . . . . . . . Intel | -11 -10 -10 -9 -9 -9 -8 -8 -8 -8 -8 ------- Run | Scr Mat Min Mat Min Exi Min Mat Gar Mat Gar Robot Analysis Total 2 | . . . . . . . . . 2 . Derelict Logs Recovered . | . . . . . . . . . . . Drone Launches . | . . . . . . . . . . . Drone Recoveries . | . . . . . . . . . . . Exploration | -11 -10 -10 -9 -9 -9 -8 -8 -8 -8 -8 ------------- Run | Scr Mat Min Mat Min Exi Min Mat Gar Mat Gar Turns Passed 7707 | 79 925 218 522 89 1495 334 556 2210 703 576 Spaces Moved 3832 | 43 540 100 209 37 673 119 234 1181 415 281 Core 23 | 23 . . . . . . . . . . Treads . | . . . . . . . . . . . Legs 2656 | 20 540 100 209 37 673 119 234 724 . . Wheels 1153 | . . . . . . . . 457 415 281 Hover . | . . . . . . . . . . . Flight . | . . . . . . . . . . . Fastest Speed 50 | 50 120 150 180 210 120 210 150 110 110 116 Average Speed 162 | 89 133 171 205 210 209 210 181 156 119 125 Slowest Speed 240 | 150 150 180 210 210 240 210 210 210 130 180 Overloaded Moves . | . . . . . . . . . . . Propulsion Burnouts . | . . . . . . . . . . . Robots Hopped . | . . . . . . . . . . . Cave-ins Triggered . | . . . . . . . . . . . Exploration Rate (%) 40 | 3 74 25 24 15 83 32 17 83 33 53 Regions Visited 10 Branch Regions 4 Pre-discovered Areas 1 | . . . . . 1 . . . . . Known Exits Taken 3 | . . . 1 . . . 1 . 1 . Unknown Exits Taken 6 | 1 1 1 . 1 1 1 . . . . Scrap Searched 2 | . . 2 . . . . . . . . Spaces Dug 9 | . . . 9 . . . . . . . Terrain Destroyed 161 | . . . 9 17 . 17 6 87 2 23 Melee . | . . . . . . . . . . . Projectile 5 | . . . . . . . . . 2 3 AOE 156 | . . . 9 17 . 17 6 87 . 20 Terrain Rammed . | . . . . . . . . . . . Walls Destroyed . | . . . . . . . . . . . Machines Disabled . | . . . . . . . . . . . Actions | -11 -10 -10 -9 -9 -9 -8 -8 -8 -8 -8 --------- Run | Scr Mat Min Mat Min Exi Min Mat Gar Mat Gar Total 4709 | 69 646 123 269 42 740 164 301 1425 521 409 Wait 170 | . 15 2 8 . 8 10 4 52 28 43 Move 3821 | 42 539 99 208 36 672 118 233 1178 415 281 Hop . | . . . . . . . . . . . Pick Up 108 | 6 15 3 14 . 21 6 12 19 9 3 Fast Attach 18 | 2 5 . 2 . 1 . . 5 3 . Attach 44 | 4 1 . 4 . 4 6 10 7 4 4 Detach 2 | . . . . . 2 . . . . . Swap 28 | 1 3 2 5 2 2 1 2 4 . 6 Drop 55 | 1 9 3 8 . 9 1 4 11 8 1 Fire 360 | 13 59 13 20 4 7 22 36 79 54 53 Melee 15 | . . . . . 14 . . . . 1 Ram . | . . . . . . . . . . . Kick . | . . . . . . . . . . . Crush . | . . . . . . . . . . . Escape Stasis 62 | . . . . . . . . 46 . 16 Rewire 26 | . . 1 . . . . . 24 . 1 Trap . | . . . . . . . . . . . Miscellaneous . | . . . . . . . . . . . Route ------- -11/Scrapyard -10/Materials (discovered 3 exits: *Mat x2 / [*Min]) -10/Mines -9/Materials -9/Mines -9/Exiles -8/Mines -8/Materials -8/Garrison (discovered 3 exits: *Mat x3) -8/Materials (discovered 2 exits: [*Fac] / Gar) -8/Garrison (discovered 1 exit: [*Fac]) History --------- Turn | Location | Event 5 | -11/Scrapyard | Discovered new exit (range 14) 80 | -11/Scrapyard | Entered Materials 311 | -10/Materials | Build established: Mutant 315 | -10/Materials | Discovered new exit (range 13) 624 | -10/Materials | Discovered new exit (range 5) 749 | -10/Materials | Core integrity fell below 50% 781 | -10/Materials | Lost 3 parts (1p2w) 966 | -10/Materials | Discovered new exit (range 6) 1005 | -10/Materials | Entered Mines 1194 | -10/Mines | Discovered new exit (range 4) 1223 | -10/Mines | Entered Materials 1223 | -9/Materials | Evolved 2 slots: Utility x2 1272 | -9/Materials | Identified exit to Mines 1350 | -9/Materials | Repaired Hcp. Storage Unit 1745 | -9/Materials | Entered Mines 1826 | -9/Mines | Deemed a non-threat by the Exiles lab entrance 1826 | -9/Mines | Discovered new exit (range 5) 1834 | -9/Mines | Entered Exiles 1889 | -9/Exiles | Met 8R-AWN 1923 | -9/Exiles | Met EX-HEX 1982 | -9/Exiles | Build established: Hauler-Mutant 2171 | -9/Exiles | Met EX-DEC 2277 | -9/Exiles | Visited The Gauntlet 2480 | -9/Exiles | Learned location of Zion (-7) 2536 | -9/Exiles | Met EX-BIN 3310 | -9/Exiles | Discovered new exit (range 11) 3329 | -9/Exiles | Entered Mines 3429 | -8/Mines | Lost 4 parts (1p1n2w) 3634 | -8/Mines | Discovered new exit (range 9) 3663 | -8/Mines | Entered Materials 3663 | -8/Materials | Evolved 2 slots: Propulsion x1, Utility x1 3705 | -8/Materials | Identified exit to Garrison 3785 | -8/Materials | Lost 3 parts (2n1w) 4219 | -8/Materials | Entered Garrison 4244 | -8/Garrison | Triggered checkpoint 4388 | -8/Garrison | Triggered checkpoint 4446 | -8/Garrison | Triggered checkpoint 4641 | -8/Garrison | Build established: Scavenger-Mutant 4690 | -8/Garrison | Triggered checkpoint 4752 | -8/Garrison | Triggered checkpoint 4872 | -8/Garrison | Discovered new exit (range 15) 5036 | -8/Garrison | Triggered checkpoint 5066 | -8/Garrison | Garrison Relay disabled 5071 | -8/Garrison | Build established: Hauler-Mutant 5131 | -8/Garrison | Discovered new exit (range 9) 5287 | -8/Garrison | Triggered checkpoint 5319 | -8/Garrison | Garrison Relay disabled 5562 | -8/Garrison | Triggered checkpoint 5633 | -8/Garrison | Garrison Relay disabled 5890 | -8/Garrison | Garrison Relay disabled 6227 | -8/Garrison | Discovered new exit (range 10) 6243 | -8/Garrison | Attempted to access garrison exit controls, blocked by remote lockdown 6249 | -8/Garrison | Installed Relay Interface Framework 6306 | -8/Garrison | Phase Generator disabled 6429 | -8/Garrison | Entered Materials 6429 | -8/Materials | Accompanied by 2 allies 6473 | -8/Materials | Core integrity fell below 50% 6564 | -8/Materials | Build established: Bothacker-Mutant 7080 | -8/Materials | Discovered new exit (range 16) 7132 | -8/Materials | Identified exit to Garrison 7132 | -8/Materials | Entered Garrison 7184 | -8/Garrison | Triggered checkpoint 7248 | -8/Garrison | Garrison Relay disabled 7374 | -8/Garrison | Triggered checkpoint 7378 | -8/Garrison | Core integrity fell below 20% 7505 | -8/Garrison | Discovered new exit (range 12) 7546 | -8/Garrison | Triggered checkpoint 7578 | -8/Garrison | Garrison Relay disabled 7606 | -8/Garrison | Triggered checkpoint 7632 | -8/Garrison | Build established: Hauler-Mutant 7668 | -8/Garrison | Triggered checkpoint 7708 | -8/Garrison | Destroyed by G-47 Trooper with Particle Gun Last Messages --------------- 07604_ Acquired 8 matter. 07606_ Slug penetrates Y-45 Defender. 07607_ Acquired 8 matter. 07607_ Gauss Rifle destroyed. 07609_ Slug penetrates Y-45 Defender. 07610_ Acquired 4 matter. 07610_ Wheel destroyed. 07612_ Acquired 10 matter. 07612_ Y-45 Defender destroyed. 07613_ Acquired 8 matter. 07666_ Slug penetrates Wall. 07681_ Slug penetrates G-47 Trooper. 07684_ Slug penetrates Wall. 07684_ Slug penetrates Reinforced Barrier. 07688_ Slug penetrates G-47 Trooper. 07693_ Slug penetrates Wall. 07699_ Slug penetrates G-47 Trooper. 07705_ Discarded Relay Coupler [Sentry]. 07706_ Arm. Wheel destroyed. 07706_ Gauss Rifle destroyed. Map ----- +----------------------------------------------------+ | ???????# = ^ #??????????????????????? | | ???????#!##### #??????????????????????? | | ???????#=#???# ######## #??????????????????????? | | ########!#???# ####???# #??????????????????????? | | *!%[= #???# #* ##### =#??????????????????????? | | # ######???# ##=[ "* #??????????????????????? | | # #????????# ## #####[=#??????????????????????? | | ##"##????????# ##=#???# #??####????????????????? | | ?# #?????????# ##[#???# #? #????????????????? | | ?# #?????????# ##%#??## ## #######??????????? | | ## ########### ##%#### ?????????? | | " !=%[! ![ ?????????? | | ############## !=%% !%! ?????????? | | ?????????????########## = ## ## ##??????????? | | ????????????????????### ## ## #???????????? | | ????????????????????# "???????????? | | ????????????????????# "???????????? | | ????????????????????# "???????????? | | ????????????????????# "???????????? | | ????????????????????### ## ## #???????????? | | ????????????########### ## ## ####????????? | | ????????????# ^ ???????? | | ????????????# g ???????? | | ????????????# ######## #???????????? | | ????????????# #??????## g## ## ##???????????? | | ????????????# #???????# @#??? #?? ?????????????? | | ????????????# #???????# #?????#????????????????? | | ????????????# #???????# #??????????????????????? | | ????????????# #???????# #??????????????????????? | | ????????????# #???????# #??????????????????????? | | ???########## ######### #??????????????????????? | | ???# #??????????????????????? | | ???# #??????????????????????? | | ???# ####### ########### #??????????????????????? | | ???# #?????# #???? ????# #??????????????????????? | | ???# #?????# #???# #???# #??????????????????????? | | ???# #?????# #???# #???# #??????????????????????? | | ???# #?????# #???# #???# #??????????????????????? | | ???# #?????# #???# #???# #??????????????????????? | | ???# #?????# #???# #???# #??????????????????????? | | ???# #?????# #???# #???# #??????????????????????? | | ???# #?????# #???# #???# #??????????????????????? | | ???# #?????# ###?# #?### #??????????????????????? | | ?# #?????# !!### ### #??????????????????????? | | ?# < #?????#=*%"!% " #??????????????????????? | | ?# #?????# [[####### #??????????????????????? | | ?######?????# ###?????### #??????????????????????? | | ????????????# #?????????# #??????????????????????? | | ????????????# ########### #??????????????????????? | | ????????????# %= !! #??????????????????????? | +----------------------------------------------------+ Best States ------------- Heat Dissipation 31 Coolant Potential 50 Energy Generation 14 Energy Capacity 280 Matter Stores 300 Matter Capacity 300 Sight Range 16 Terrain Scan Density 10 Utility Shielding 33 Evasion (%) 50 Offensive Hacking 10 Relay Coupler Types 18 Relay Coupler Value 1 Item Schematics ----------------- Utility Shielding | -8/Materials | Scanalyzed Robot Schematics ------------------ None Fabricated ------------ Nothing Alien Tech Used ----------------- None Achievements -------------- None Challenges ------------ None Game ------ Seed PointShrapnelBoosters Manual? 0 Play Time 00:59:23 Cumulative 174.6 hours Start 2021.05.01 @ 09:02:18 End 2021.05.01 @ 10:00:55 Sessions 1 Manual Loads 0 Difficulty Rogue Special Mode None Game No. 71 Rogue 71 Adventurer 0 Explorer 0 Win Type - Total 2 Types 2/0/0/0/0/0/0/0/0 Lore% 62 Gallery% 74 Achievement% 55 Wizard Run 0 Options --------- ASCII 0 Keyboard 0 Movement Mouse Keybinds 0 Fullscreen 2 Font 12/Smallcaps Map View 83x54 Tactical HUD 1 Map Filters NONE Filters NONE Steam X RUN: 5f786dec-3df3-4ee5-a5e8-0fa357cb650d